Cogmind - Beta 14 *** ADVENTURER MODE // 2024.08.30 @ 18:19:02 Player: LegoMDS Result: Destroyed by H-71 Marshal with Heavy Mass Driver Performance ------------- Evolutions (6) 3000 Regions Visited (17) 3400 Robots Destroyed (192) 960 Value Destroyed (8095) 8095 Prototype IDs (36) 720 Alien Tech Used (0) 0 Bonus (2503) 2503 TOTAL SCORE: 18678 Bonus ------- High Alert Combat Kills 209 Follower Combat Kills 1813 Aligned with FarCom 300 Met R17 at Cetus 500 Friendly Fire -319 Cogmind --------- Core Integrity 0/1150 Matter 290/300 Energy 30/100 System Corruption 2% Temperature Cool (0) Movement Core (550) Ox10 Location -4/Factory Parts ------- > --- POWER (2) -------- (None) > --- PROPULSION (4) --- (None) > --- UTILITY (8) ------ Advanced Heat Sink Large Storage Unit Advanced Signal Interpreter Advanced ECM Suite Hacking Suite > --- WEAPON (5) ------- Smartbomb Launcher > --- INVENTORY (15) --- Advanced Weight Redist. System Enhanced Optical Array Microactuators Phase Shifter Graphene Brace Peak State ------------ > --- POWER ------------ Quantum Reactor Quantum Reactor > --- PROPULSION ------- Centrium Heavy Treads Centrium Heavy Treads > --- UTILITY ---------- Advanced Cooling System Improved Weapon Cycler Improved Reaction Control System Hacking Suite Hacking Suite Improved Hacking Suite > --- WEAPON ----------- Advanced Variable Charge Gun Heavy Machine Gun Advanced KE Penetrator Tiamat Missile Launcher Phasing Sabre > --- INVENTORY -------- Microactuators Advanced ECM Suite Advanced Variable Charge Gun Bore Cannon Enhanced Gauss Cannon [Rating: 118] Favorites ----------- Power Micro Nuclear Core Engine Light Ion Engine Power Core Micro Nuclear Core Reactor Quantum Reactor Propulsion Centrium Heavy Treads Treads Centrium Heavy Treads Leg Carbon-fiber Leg Hover Unit Gravmag Array Flight Unit VTOL Module Utility Hacking Suite Device Cryofiber Web Storage Huge Storage Unit Processor Improved Targeting Computer Hackware Hacking Suite Protection Hardened Medium Armor Plating Weapon Longsword +1 Energy Gun Advanced Variable Charge Gun Energy Cannon Disruptor Cannon Ballistic Gun Heavy Machine Gun Ballistic Cannon Mini Assault Cannon Launcher Mini Grenade Launcher Slashing Weapon Longsword +1 Build | -11 -10 -10 -9 -9 -9 -8 -8 -7 -7 -7 -7 -7 -6 -6 -6 -5 -4 ------- Run | Yrd Mat Min Mat Min Exi Min Mat Fac Was Fac Low Low Fac Ext Cet Fac Fac Slots Evolved 12 | . . . 2 . . . 2 2 . . . . 2 . . 2 2 Power 1 | . . . . . . . 1 . . . . . . . . . . Propulsion 2 | . . . 1 . . . . 1 . . . . . . . . . Utility 6 | . . . 1 . . . 1 . . . . . 2 . . . 2 Weapon 3 | . . . . . . . . 1 . . . . . . . 2 . Parts Attached 228 | 6 9 1 5 6 . 8 15 14 1 7 16 . 33 30 13 19 45 Power 35 | 1 2 . . 1 . 1 5 5 . 2 2 . 6 1 3 . 6 Engine 11 | 1 2 . . 1 . 1 4 1 . . 1 . . . . . . Core 16 | . . . . . . . 1 4 . 2 1 . 6 . . . 2 Reactor 8 | . . . . . . . . . . . . . . 1 3 . 4 Propulsion 61 | 2 4 1 1 2 . 4 2 5 1 1 6 . 14 11 2 . 5 Treads 4 | . . . . . . . . . . . . . . . 2 . 2 Leg 25 | 2 2 . . . . . . . . . 5 . 3 11 . . 2 Wheel . | . . . . . . . . . . . . . . . . . . Hover 4 | . . . . . . . . . . . . . 4 . . . . Flight 28 | . 2 1 1 2 . 4 2 5 1 1 1 . 7 . . . 1 Utility 64 | 1 2 . 1 . . 1 5 1 . 3 3 . 6 5 6 11 19 Device 45 | . 2 . . . . 1 4 1 . 3 1 . 4 4 4 7 14 Storage 4 | 1 . . . . . . . . . . . . . . . 2 1 Processor 6 | . . . 1 . . . . . . . 1 . . . . 1 3 Hackware 6 | . . . . . . . . . . . 1 . 2 1 1 . 1 Protection 3 | . . . . . . . 1 . . . . . . . 1 1 . Artifact . | . . . . . . . . . . . . . . . . . . Weapon 68 | 2 1 . 3 3 . 2 3 3 . 1 5 . 7 13 2 8 15 Energy Gun 16 | 1 . . 2 1 . . 1 . . . . . 2 2 1 1 5 Energy Cannon 1 | . . . . . . . . . . . . . . . . 1 . Ballistic Gun 25 | 1 1 . 1 . . 1 1 2 . . 2 . 3 3 1 5 4 Ballistic Cannon 9 | . . . . . . . . . . 1 . . 2 3 . . 3 Launcher 11 | . . . . 2 . . 1 1 . . 1 . . 2 . 1 3 Special Weapon . | . . . . . . . . . . . . . . . . . . Impact Weapon . | . . . . . . . . . . . . . . . . . . Slashing Weapon 6 | . . . . . . 1 . . . . 2 . . 3 . . . Piercing Weapon . | . . . . . . . . . . . . . . . . . . Special Melee Weapon . | . . . . . . . . . . . . . . . . . . Unidentified Prototypes 10 | . . . 2 . . . 1 1 . 1 . . . . 4 1 . Parts Lost 98 | . . . . 2 . 3 . 1 . 2 13 . 18 10 . 10 39 Power 15 | . . . . 1 . . . . . . 2 . 4 1 . 2 5 Propulsion 30 | . . . . 1 . 3 . 1 . 1 7 . 6 4 . 1 6 Utility 26 | . . . . . . . . . . 1 2 . 4 2 . 3 14 Weapon 27 | . . . . . . . . . . . 2 . 4 3 . 4 14 Highest Loss Streak 12 | . . . . 2 . 2 . 1 . 2 5 . 7 7 . 6 12 To Critical Strikes 3 | . . . . . . . . . . . 2 . . . . . 1 Average Slot Usage (%) 80 | . 95 100 97 95 100 98 90 96 96 98 76 84 79 84 87 84 53 Engine 1 | . 13 14 11 9 11 11 9 . . . 2 7 . . . . . Core 5 | . . . . . . . 1 13 15 15 11 7 11 7 . . . Reactor 3 | . . . . . . . . . . . . . . 4 12 9 5 Treads 3 | . . . . . . . . . . . . . . . 11 10 5 Leg 5 | . 23 . . . . . . . . . 7 15 2 22 2 . . Flight 6 | . 4 28 33 30 33 32 25 27 26 28 3 . 7 . . . . Device 14 | . 10 14 11 11 11 15 19 20 23 22 17 7 10 17 21 13 11 Storage 2 | . 14 14 11 11 11 6 . . . . . . . . . 3 4 Processor 6 | . . . 8 11 11 11 9 7 7 7 11 15 12 1 . . 7 Hackware 7 | . . . . . . . . . . . . 7 10 8 17 13 3 Energy Gun 4 | . 14 14 11 7 11 11 1 . . . . . 1 4 4 5 5 Ballistic Gun 5 | . 13 14 11 9 . 4 6 14 7 1 1 . 4 6 1 10 5 Ballistic Cannon 3 | . . . . . . . . . . 5 7 7 4 2 6 1 . Launcher 1 | . . . . 4 11 1 . . 7 7 3 7 . 1 . 3 2 Slashing Weapon 4 | . . . . . . 4 9 7 7 7 6 7 5 2 6 3 . Peak Build Rating 118 | 6 9 9 16 15 14 21 32 41 40 47 48 46 81 76 104 118 84 Average Rating 60 | 2 6 9 12 14 13 17 28 37 38 44 39 46 61 60 97 110 55 On Entrance 34 | . 6 9 9 15 13 14 21 30 37 40 46 46 46 70 68 101 49 Naked Turns . | . . . . . . . . . . . . . . . . . . Heaviest Build 160 | 14 16 12 14 14 14 14 20 25 22 24 27 25 35 47 68 160 102 Greatest Support 160 | 20 20 14 18 18 18 18 22 26 25 27 54 38 54 70 160 160 80 Greatest Overweight (x) 31 | . . . . . . . 1 1 . . 8 . 9 13 1 1 31 Average Overweight (x) . | . . . . . . . . . . . 1 . . . . . 2 Largest Inventory Capacity 25 | 8 8 8 8 8 8 8 5 5 5 5 5 5 5 5 5 25 25 Average Capacity 8 | 5 8 8 8 8 8 6 5 5 5 5 5 5 5 5 5 17 15 Most Carried 11 | 5 8 8 8 8 8 8 5 5 5 5 5 5 5 5 5 11 10 Average Carried 5 | 2 4 8 7 7 8 6 4 4 5 4 4 5 4 3 4 6 5 Final Capacity 25 | 8 8 8 8 8 8 5 5 5 5 5 5 5 5 5 5 25 15 Final Carried 10 | 2 8 8 7 8 8 5 5 5 5 5 5 5 5 5 5 10 5 Class Distribution -------------------- 29% | Hacker-Mutant 19% | Scavenger-Mutant 16% | Mutant 13% | Scavenger-Skirmisher 9% | Hacker-Skirmisher 5% | Scavenger-Sprinter Dominant Class ---------------- Mutant | -10/Materials Mutant | -10/Mines Scavenger-Mutant | -9/Materials Scavenger-Mutant | -9/Mines Scavenger-Mutant | -9/Exiles Scavenger-Mutant | -8/Mines Scavenger-Sprinter | -8/Materials Scavenger-Sprinter | -7/Factory Scavenger-Sprinter | -7/Waste Scavenger-Sprinter | -7/Factory Mutant | -7/Lower Caves Hacker-Mutant | -7/Lower Caves Hacker-Mutant | -6/Factory Scavenger-Mutant | -6/Extension Hacker-Mutant | -6/Cetus Hacker-Skirmisher | -5/Factory Scavenger-Skirmisher | -4/Factory Resources | -11 -10 -10 -9 -9 -9 -8 -8 -7 -7 -7 -7 -7 -6 -6 -6 -5 -4 ----------- Run | Yrd Mat Min Mat Min Exi Min Mat Fac Was Fac Low Low Fac Ext Cet Fac Fac Matter Collected 7362 | 194 176 43 84 187 . 103 134 332 . 196 413 . 1350 1936 594 579 1041 Remotely . | . . . . . . . . . . . . . . . . . . Salvage Created 7401 | . 307 43 174 263 . 86 344 363 . 405 508 . 1260 500 491 1188 1469 Parts 418 | . 31 3 12 17 . 8 20 34 . 22 16 . 70 18 22 72 73 Haulers Intercepted 4 | . 1 . 1 . . . . . . . . . 1 . . . 1 Recyclers Shooed 7 | . . . 1 1 . . . . . . . . 2 . . 1 2 Parts Field Recycled . | . . . . . . . . . . . . . . . . . . Retrieved Matter . | . . . . . . . . . . . . . . . . . . Parts Self-Destructed 15 | . . . . . . . . . . . 15 . . . . . . Prevented . | . . . . . . . . . . . . . . . . . . Kills | -11 -10 -10 -9 -9 -9 -8 -8 -7 -7 -7 -7 -7 -6 -6 -6 -5 -4 ------- Run | Yrd Mat Min Mat Min Exi Min Mat Fac Was Fac Low Low Fac Ext Cet Fac Fac Combat Hostiles Destroyed 166 | . 8 3 3 17 . 5 10 6 . 6 16 . 25 8 7 25 27 Melee 27 | . . . . . . 1 4 2 . 3 4 . 11 1 . 1 . Guns 81 | . 8 3 3 15 . 4 1 4 . . 1 . 6 4 . 12 20 Cannons 34 | . . . . . . . . . . 1 8 . 7 3 7 1 7 AOE 23 | . . . . 2 . . 5 . . 2 3 . . . . 11 . Classes Destroyed 16 | . 6 . 1 2 . . 1 1 . . 1 . 1 1 . 2 . Worker 10 | . 1 . . . . . . . . 3 . . . . . 3 3 Builder 1 | . . . . . . . . . . . . . . . . 1 . Tunneler 1 | . 1 . . . . . . . . . . . . . . . . Hauler 4 | . 1 . 1 . . . . . . . . . 1 . . . 1 Carrier 2 | . . . . . . . . . . . . . . 1 1 . . Operator 3 | . . . . . . . . . . . . . 1 1 . 1 . Watcher 14 | . 2 . . . . . . 4 . 1 . . 2 . . 4 1 Swarmer 50 | . 6 3 . 4 . 4 . 3 . . 6 . 5 1 . 9 9 Grunt 52 | . 2 . 2 3 . 1 4 . . 4 2 . 12 4 . 9 9 Brawler 4 | . . . . 1 . . . . . . 2 . 1 . . . . Duelist 4 | . . . . . . . 1 . . 1 1 . . 1 . . . Sentry 17 | . . . 1 . . . 5 2 . 1 3 . 2 2 . 1 . Hunter 12 | . . . . . . . . . . . 1 . 1 . 1 5 4 Programmer 11 | . . . . . . . . 1 . . 1 . 4 . . . 5 Behemoth 1 | . . . . . . . . . . . . . . . . 1 . Cetus Guard 6 | . . . . . . . . . . . . . . . 6 . . Assembled 9 | . . . . 9 . . . . . . . . . . . . . Best Kill Streak 9 | . 6 3 4 9 . 3 7 4 . 7 5 . 4 2 4 5 6 Combat Bots Only 9 | . 3 3 3 9 . 3 7 3 . 3 5 . 4 1 4 5 5 Max Kills in Single Turn 4 | . 2 1 1 2 . 1 2 1 . 3 2 . 1 1 1 4 2 Gunslinging 1 | . 1 . . . . . . . . . . . . . . . . Exploded 4 | . . . . 1 . . 2 . . 1 2 . . . . 4 . Melee 1 | . . . . . . 1 1 1 . 1 1 . 1 1 . 1 . Uniques/NPCs Destroyed . | . . . . . . . . . . . . . . . . . . Combat | -11 -10 -10 -9 -9 -9 -8 -8 -7 -7 -7 -7 -7 -6 -6 -6 -5 -4 -------- Run | Yrd Mat Min Mat Min Exi Min Mat Fac Was Fac Low Low Fac Ext Cet Fac Fac Hostile Shots Fired 1575 | . 41 9 9 50 . 24 37 66 . 34 152 . 281 247 48 121 456 Missed 546 | . 15 5 4 21 . 6 16 27 . 18 51 . 96 100 17 24 146 Damage Taken 13254 | . 212 24 42 293 . 230 318 302 . 188 1117 . 2232 1053 423 2126 4694 Core 2988 | . 12 12 9 86 . 57 65 70 . 88 242 . 615 205 16 340 1171 Absorbed by Shields 341 | . . . . . . . 7 . . . . . . 185 128 . 21 Reduced by Siege Mode 140 | . . . . . . . . . . . . . . . 29 111 . Ignored by Resistances 3906 | . 64 8 14 88 . 63 91 93 . 58 325 . 633 380 155 579 1355 Regen/Repaired (Parts) 24 | . . . . . . . 24 . . . . . . . . . . Core Remaining (%) 64 | 100 . 90 . . . 62 88 . . . . 42 . . 1 66 . Volleys Fired 477 | . 27 4 10 30 . 9 22 20 . 7 38 . 84 31 49 53 93 Largest 5 | . 2 2 2 2 . 2 1 2 . 2 2 . 2 3 2 5 4 Hottest 495 | . 70 70 70 95 . 88 56 48 . 55 78 . 125 153 297 495 168 Shots Fired 863 | . 53 8 20 51 . 15 22 37 . 11 48 1 122 69 74 155 177 Gun 660 | . 53 8 20 47 . 15 18 37 . 6 7 . 74 52 28 142 153 Cannon 178 | . . . . . . . . . . 1 39 1 48 15 46 6 22 Launcher 25 | . . . . 4 . . 4 . . 4 2 . . 2 . 7 2 Special . | . . . . . . . . . . . . . . . . . . Kinetic 591 | . 27 4 10 27 . 6 11 37 . 7 46 1 83 49 57 101 125 Thermal 216 | . 26 4 10 20 . 9 7 . . . . . 11 18 17 44 50 Explosive 25 | . . . . 4 . . 4 . . 4 2 . . 2 . 7 2 Electromagnetic 31 | . . . . . . . . . . . . . 28 . . 3 . Robot Hit Streak 23 | . 11 5 11 9 . 8 6 12 . 4 8 . 21 18 11 22 23 Robot Miss Streak 6 | . 3 2 1 3 . 4 2 3 . 3 1 . 4 4 3 3 6 Penetration Max 1 | . . . . . . . . . . . . . . . 1 1 1 Secondary Targets 15 | . 4 1 . 2 . . . 1 . . . . . 1 . . 6 Max Gunslinging Chain 1 | . 1 1 . 1 . . . 1 . . . . . 1 . . 1 Shots Hit Robots 717 | . 40 6 17 39 . 16 26 28 . 16 50 . 133 48 37 120 141 Core Hits 405 | . 17 3 7 45 . 16 24 14 . 14 27 . 63 28 13 53 81 Critical Kills 15 | . . . . . . . . . . . . . . 1 7 2 5 Critical Parts Destroyed 16 | . . . . . . . . . . . . . . . 6 3 7 Critical Strikes 59 | . 2 1 1 . . . 3 1 . 2 4 . 8 1 15 6 15 Burn 8 | . 2 1 1 . . . . . . . . . 1 . . . 3 Destroy 34 | . . . . . . . . . . . . . . 1 15 6 12 Blast 4 | . . . . . . . . . . 1 2 . 1 . . . . Sever 13 | . . . . . . . 3 1 . 1 2 . 6 . . . . Melee Attacks 80 | . . . . . . 2 12 5 . 10 13 . 32 1 . 5 . Impact . | . . . . . . . . . . . . . . . . . . Slashing 80 | . . . . . . 2 12 5 . 10 13 . 32 1 . 5 . Piercing . | . . . . . . . . . . . . . . . . . . Sneak Attacks 3 | . . . . . . . . . . 1 . . . . . 2 . Combat Hostiles 2 | . . . . . . . . . . 1 . . . . . 1 . Follow-up Attacks . | . . . . . . . . . . . . . . . . . . Damage Inflicted 20468 | . 530 77 216 686 . 286 1223 642 . 959 1646 . 3851 1267 955 4761 3369 Guns 10042 | . 530 77 216 530 . 205 174 413 . 72 96 . 1233 682 339 2913 2562 Cannons 3612 | . . . . . . . . . . 31 836 . 971 340 616 69 749 Explosions 3215 | . . . . 156 . . 525 . . 340 309 . 96 215 . 1516 58 Melee 3599 | . . . . . . 81 524 229 . 516 405 . 1551 30 . 263 . Ramming . | . . . . . . . . . . . . . . . . . . Kinetic 9541 | . 283 41 129 268 . 68 90 413 . 103 932 . 1609 724 786 1646 2449 Thermal 3782 | . 247 36 87 262 . 137 84 . . . . . 298 298 169 1302 862 Explosive 3119 | . . . . 156 . . 525 . . 340 309 . . 215 . 1516 58 Electromagnetic 427 | . . . . . . . . . . . . . 393 . . 34 . Impact . | . . . . . . . . . . . . . . . . . . Slashing 3599 | . . . . . . 81 524 229 . 516 405 . 1551 30 . 263 . Piercing . | . . . . . . . . . . . . . . . . . . Highest Corruption 13 | . . . . . . . . 1 5 5 13 13 4 4 4 1 2 Average Corruption 4 | . . . . . . . . 1 1 5 9 13 3 4 4 1 1 Corruption Purged . | . . . . . . . . . . . . . . . . . . Corruption Blocked . | . . . . . . . . . . . . . . . . . . Effects 147 | . . . . . . . . . 1 8 41 4 16 32 27 7 11 Message Errors 35 | . . . . . . . . . . 1 13 2 2 5 6 2 4 Matter Fused 32 | . . . . . . . . . 1 2 6 . 3 11 7 . 2 Heat Flow Errors 22 | . . . . . . . . . . 1 9 1 3 3 1 2 2 Energy Discharges 15 | . . . . . . . . . . 2 3 . 3 2 5 . . Parts Rejected 3 | . . . . . . . . . . . . . . 2 . 1 . Parts Fused 2 | . . . . . . . . . . . . . . . 1 1 . Data Loss (minor) 13 | . . . . . . . . . . 1 3 . 2 2 4 1 . Data Loss (major) 7 | . . . . . . . . . . 1 1 . 1 3 . . 1 Misfires 10 | . . . . . . . . . . . 3 1 1 3 1 . 1 Alerts 4 | . . . . . . . . . . . 2 . 1 1 . . . Weapon Failures 4 | . . . . . . . . . . . 1 . . . 2 . 1 Overload Shots 13 | . . . . . . . . . . . . . . . 6 7 . Overflow Damage 413 | . . . . . . 9 7 25 . 23 56 . 11 . . 241 41 Projectiles 64 | . . . . . . . . . . . 23 . . . . . 41 Explosions 234 | . . . . . . . . . . . 33 . . . . 201 . Melee 115 | . . . . . . 9 7 25 . 23 . . 11 . . 40 . Knockbacks 21 | . . . . . . . . . . . 6 . 9 1 . . 5 Impact . | . . . . . . . . . . . . . . . . . . Kinetic 20 | . . . . . . . . . . . 6 . 8 1 . . 5 Secondary 1 | . . . . . . . . . . . . . 1 . . . . Self-Inflicted Damage 97 | . . . . 36 . . 45 . . . . . . 16 . . . Shots 5 | . . . . 1 . . 3 . . . . . . 1 . . . Rammed . | . . . . . . . . . . . . . . . . . . Targets Rammed . | . . . . . . . . . . . . . . . . . . Kicked . | . . . . . . . . . . . . . . . . . . Crushed . | . . . . . . . . . . . . . . . . . . Highest Temperature 776 | . 144 60 104 160 . 251 6 310 . 67 125 180 438 220 482 776 225 Average Temperature 101 | . 34 31 61 67 . 99 4 143 . 49 49 93 120 49 143 169 68 Received Heat Transfer 2889 | . 90 . 30 95 . 144 96 . . 69 360 . 619 281 . 354 751 Effects 31 | . . . . . . . . . . . . . 7 . 6 18 . Shutdowns 9 | . . . . . . . . . . . . . 3 . 3 3 . Interference 14 | . . . . . . . . . . . . . 4 . 1 9 . Matter Decay 1 | . . . . . . . . . . . . . . . 1 . . Short Circuit 2 | . . . . . . . . . . . . . . . 1 1 . Damage (major) 5 | . . . . . . . . . . . . . . . . 5 . Siege Activations 2 | . . . . . . . . . . . . . . . 1 1 . Total Turns 47 | . . . . . . . . . . . . . . . 23 24 . Longest Duration 24 | . . . . . . . . . . . . . . . 23 24 . Robots Corrupted 1 | . . . . . . . . . . . . . 1 . . . . Combat Hostiles 1 | . . . . . . . . . . . . . 1 . . . . Parts Fried . | . . . . . . . . . . . . . . . . . . Impact Corruptions . | . . . . . . . . . . . . . . . . . . Robots Melted . | . . . . . . . . . . . . . . . . . . Combat Hostiles . | . . . . . . . . . . . . . . . . . . Parts Melted 12 | . 3 1 . . . . . . . . 1 . 1 2 . 1 3 Heat Transferred 6815 | . 888 185 333 305 . 165 185 . . . . . 600 661 112 1497 1884 Parts Sabotaged . | . . . . . . . . . . . . . . . . . . Parts Stolen . | . . . . . . . . . . . . . . . . . . Parts Stripped . | . . . . . . . . . . . . . . . . . . Power Chain Reactions 1 | . . . . . . . . . . . . . 1 . . . . Alert | -11 -10 -10 -9 -9 -9 -8 -8 -7 -7 -7 -7 -7 -6 -6 -6 -5 -4 ------- Run | Yrd Mat Min Mat Min Exi Min Mat Fac Was Fac Low Low Fac Ext Cet Fac Fac Peak Influence 677 | . 252 153 132 243 . 125 560 581 199 381 . . 205 630 332 677 323 Initial 259 | . . 83 50 43 . . 40 218 169 122 . . . 25 259 159 193 Average 212 | . 92 150 96 186 . 82 323 401 182 249 . . 57 333 251 369 135 Maximum Alert Level 2 | . 1 . . 1 . . 2 2 . 1 . . 1 2 1 2 1 Low Security (%) 54 | 100 77 100 100 44 . 100 25 . 100 14 . . 95 23 16 30 84 Level 1 29 | . 22 . . 55 . . 43 51 . 85 . . 4 40 83 18 15 Level 2 15 | . . . . . . . 31 48 . . . . . 36 . 51 . Level 3 . | . . . . . . . . . . . . . . . . . . Level 4 . | . . . . . . . . . . . . . . . . . . Level 5 . | . . . . . . . . . . . . . . . . . . High Security . | . . . . . . . . . . . . . . . . . . Max Security . | . . . . . . . . . . . . . . . . . . Squads Dispatched 32 | . . . . . . . 4 . . 1 . . 8 5 1 7 6 Investigation 8 | . . . . . . . . . . 1 . . 2 1 1 2 1 Extermination 6 | . . . . . . . . . . . . . 3 . . 1 2 Reinforcement 12 | . . . . . . . 1 . . . . . 2 2 . 4 3 Assault 2 | . . . . . . . . . . . . . . 2 . . . Garrison 4 | . . . . . . . 3 . . . . . 1 . . . . Intercept . | . . . . . . . . . . . . . . . . . . Searches Triggered . | . . . . . . . . . . . . . . . . . . Construction Impeded 2 | . . . . . . . 1 . . . . . . . . . 1 Haulers Reinforced 1 | . . . . . . . . . . . . . 1 . . . . Active Scanning Responses . | . . . . . . . . . . . . . . . . . . Cargo Convoy Interrupts 1 | . . . . . . . . . . . . . . . . 1 . Stealth | -11 -10 -10 -9 -9 -9 -8 -8 -7 -7 -7 -7 -7 -6 -6 -6 -5 -4 --------- Run | Yrd Mat Min Mat Min Exi Min Mat Fac Was Fac Low Low Fac Ext Cet Fac Fac Distress Signals 14 | . 2 . . . . . 1 3 . . . . . 4 2 . 2 Communications Jammed 2 | . . . . . . . . . . . . . 1 . . . 1 Distress Signals 2 | . . . . . . . . . . . . . 1 . . . 1 Times Spotted 276 | . 16 2 3 17 . 6 21 11 5 9 16 . 36 50 15 36 33 Peak Tracking Total 8 | . 4 1 3 4 . 4 8 4 5 2 7 . 5 7 5 5 5 Tactical Retreats 21 | . . . . . . 1 3 1 . 2 . . 5 4 . 2 3 Traps | -11 -10 -10 -9 -9 -9 -8 -8 -7 -7 -7 -7 -7 -6 -6 -6 -5 -4 ------- Run | Yrd Mat Min Mat Min Exi Min Mat Fac Was Fac Low Low Fac Ext Cet Fac Fac Traps Triggered 13 | . 1 . . . . . . 1 . 2 . . 5 1 . 3 . Indirectly . | . . . . . . . . . . . . . . . . . . Trap Hack Attempts . | . . . . . . . . . . . . . . . . . . Triggered . | . . . . . . . . . . . . . . . . . . Disarmed . | . . . . . . . . . . . . . . . . . . Reprogrammed . | . . . . . . . . . . . . . . . . . . Reused . | . . . . . . . . . . . . . . . . . . Traps Extracted . | . . . . . . . . . . . . . . . . . . Installed 4 | . . 4 . . . . . . . . . . . . . . . Triggered 1 | . . . . . . . . . . . . . . . . 1 . Machines | -11 -10 -10 -9 -9 -9 -8 -8 -7 -7 -7 -7 -7 -6 -6 -6 -5 -4 ---------- Run | Yrd Mat Min Mat Min Exi Min Mat Fac Was Fac Low Low Fac Ext Cet Fac Fac Machines Disabled 22 | . . . . . . . . 1 . . . . 2 9 4 4 2 Max in Single Turn 2 | . . . . . . . . 1 . . . . 2 1 2 2 1 Garrison Access 4 | . . . . . . . 1 . . . . . 1 . . 2 . Energy Cycler 4 | . . . . . . . . . . . . . . 4 . . . Machines Repaired . | . . . . . . . . . . . . . . . . . . Machines Dismantled . | . . . . . . . . . . . . . . . . . . Machines Sabotaged . | . . . . . . . . . . . . . . . . . . Overloaded Fab Kills . | . . . . . . . . . . . . . . . . . . Hacking | -11 -10 -10 -9 -9 -9 -8 -8 -7 -7 -7 -7 -7 -6 -6 -6 -5 -4 --------- Run | Yrd Mat Min Mat Min Exi Min Mat Fac Was Fac Low Low Fac Ext Cet Fac Fac Machines Accessed 41 | . . 1 2 . 2 . 6 1 . 2 3 . 8 5 3 6 2 Terminals 24 | . . . 2 . . . 4 1 . 1 . . 4 5 3 4 . Fabricators 3 | . . . . . . . . . . 1 . . 1 . . . 1 Repair Stations 1 | . . . . . . . 1 . . . . . . . . . . Recycling Units 2 | . . . . . . . . . . . . . 1 . . . 1 Scanalyzers 1 | . . . . . . . . . . . . . 1 . . . . Garrison Access 4 | . . . . . . . 1 . . . . . 1 . . 2 . Total Hacks 90 | . . 1 7 . 2 . 15 2 . 3 7 . 21 9 8 11 4 Successful 62 | . . 1 3 . 2 . 7 2 . 3 7 . 15 5 5 9 3 Failed 28 | . . . 4 . . . 8 . . . . . 6 4 3 2 1 Catastrophic 3 | . . . . . . . . . . . . . 2 . 1 . . Database Lockouts . | . . . . . . . . . . . . . . . . . . Manual 6 | . . . . . 1 . 4 . . . . . . . . 1 . Terminals 57 | . . . 7 . . . 10 2 . 1 . . 11 9 8 9 . Fabricators 7 | . . . . . . . . . . 2 . . 3 . . . 2 Repair Stations 3 | . . . . . . . 3 . . . . . . . . . . Recycling Units 5 | . . . . . . . . . . . . . 3 . . . 2 Scanalyzers 3 | . . . . . . . . . . . . . 3 . . . . Garrison Access 5 | . . . . . . . 2 . . . . . 1 . . 2 . Terminal Hacks 42 | . . 1 3 . 2 . 3 2 . 1 7 . 6 5 5 7 . Record 21 | . . . . . 1 . . 1 . . 5 . 6 . 4 4 . Part Schematic 2 | . . . . . . . . . . 1 . . . . . 1 . Robot Analysis 5 | . . . 3 . . . 1 1 . . . . . . . . . Prototype ID Bank 1 | . . . . . . . . . . . . . . . . 1 . Open Door 9 | . . 1 . . . . . . . . 2 . . 5 1 . . Hauler Manifests 1 | . . . . . . . . . . . . . . . . 1 . Zone Layout 2 | . . . . . . . 2 . . . . . . . . . . Derelict Proto ID Bank 1 | . . . . . 1 . . . . . . . . . . . . Fabricator Hacks 6 | . . . . . . . . . . 2 . . 2 . . . 2 Load Schematic 3 | . . . . . . . . . . 1 . . 1 . . . 1 Build 3 | . . . . . . . . . . 1 . . 1 . . . 1 Repair Station Hacks 2 | . . . . . . . 2 . . . . . . . . . . Scan Component 1 | . . . . . . . 1 . . . . . . . . . . Repair 1 | . . . . . . . 1 . . . . . . . . . . Recycling Unit Hacks 4 | . . . . . . . . . . . . . 3 . . . 1 Process 1 | . . . . . . . . . . . . . 1 . . . . Report Inventory 1 | . . . . . . . . . . . . . 1 . . . . Retrieve Matter 1 | . . . . . . . . . . . . . 1 . . . . Retrieve Components 1 | . . . . . . . . . . . . . . . . . 1 Scanalyzer 3 | . . . . . . . . . . . . . 3 . . . . Insert Component 2 | . . . . . . . . . . . . . 2 . . . . Analyze 1 | . . . . . . . . . . . . . 1 . . . . Garrison Access Hacks 4 | . . . . . . . 1 . . . . . 1 . . 2 . Seal Access 4 | . . . . . . . 1 . . . . . 1 . . 2 . Unauthorized Hacks 1 | . . . . . . . 1 . . . . . . . . . . Terminals 1 | . . . . . . . 1 . . . . . . . . . . Assimilate 1 | . . . . . . . 1 . . . . . . . . . . Fabricators . | . . . . . . . . . . . . . . . . . . Repair Stations . | . . . . . . . . . . . . . . . . . . Recycling Units . | . . . . . . . . . . . . . . . . . . Scanalyzers . | . . . . . . . . . . . . . . . . . . Garrison Access . | . . . . . . . . . . . . . . . . . . Data Cores Recovered 1 | . . . . . . . . . . . . . . . . 1 . Used . | . . . . . . . . . . . . . . . . . . Hacking Detections 17 | . . . 2 . . . 2 . . 1 . . 6 3 1 1 1 Full Trace Events 8 | . . . . . . . 1 . . 1 . . 2 1 1 1 1 Feedback Events . | . . . . . . . . . . . . . . . . . . Feedback Blocked . | . . . . . . . . . . . . . . . . . . Robot Schematics Acquired . | . . . . . . . . . . . . . . . . . . Robots Built . | . . . . . . . . . . . . . . . . . . Authchips . | . . . . . . . . . . . . . . . . . . Time . | . . . . . . . . . . . . . . . . . . Total Robot Build Rating . | . . . . . . . . . . . . . . . . . . Part Schematics Acquired 3 | . . . . . . . . . . 1 . . 1 . . 1 . Parts Built 4 | . . . . . . . . . . 2 . . 2 . . . . Authchips . | . . . . . . . . . . . . . . . . . . Time 269 | . . . . . . . . . . 106 . . 35 . . . 128 Total Part Build Rating 24 | . . . . . . . . . . 12 . . 12 . . . . Parts Repaired 1 | . . . . . . . 1 . . . . . . . . . . Time 38 | . . . . . . . 38 . . . . . . . . . . Parts Recycled . | . . . . . . . . . . . . . . . . . . Recycled Matter 11 | . . . . . . . . . . . . . 11 . . . . Retrieved Matter 11 | . . . . . . . . . . . . . 11 . . . . Retrieved Components 10 | . . . . . . . . . . . . . . . . . 10 Parts Scanalyzed 1 | . . . . . . . . . . . . . 1 . . . . Part Schematics Acquired 1 | . . . . . . . . . . . . . 1 . . . . Parts Damaged . | . . . . . . . . . . . . . . . . . . Bothacking | -11 -10 -10 -9 -9 -9 -8 -8 -7 -7 -7 -7 -7 -6 -6 -6 -5 -4 ------------ Run | Yrd Mat Min Mat Min Exi Min Mat Fac Was Fac Low Low Fac Ext Cet Fac Fac Used RIF Installer . | . . . . . . . . . . . . . . . . . . Robots Hacked . | . . . . . . . . . . . . . . . . . . Non-combat . | . . . . . . . . . . . . . . . . . . Combat . | . . . . . . . . . . . . . . . . . . Robot Hacks Applied . | . . . . . . . . . . . . . . . . . . Relay Couplers Released . | . . . . . . . . . . . . . . . . . . Fabnet Peak Effective % . | . . . . . . . . . . . . . . . . . . Robots Rewired 10 | . . . . . . . . . . . . . . 10 . . . Allies Hacked . | . . . . . . . . . . . . . . . . . . Hacks Repelled . | . . . . . . . . . . . . . . . . . . Allies | -11 -10 -10 -9 -9 -9 -8 -8 -7 -7 -7 -7 -7 -6 -6 -6 -5 -4 -------- Run | Yrd Mat Min Mat Min Exi Min Mat Fac Was Fac Low Low Fac Ext Cet Fac Fac Total Allies 15 | . . . . . . . . . . . . . . 15 . . . Largest Group 9 | . . . . . . . . . . . . . . 9 4 1 . Highest-Rated Group 468 | . . . . . . . . . . . . . . 468 167 93 . Highest-Rated Ally 159 | . . . . . . . . . . . . . . 159 99 93 . Total Orders . | . . . . . . . . . . . . . . . . . . Ally Attacks 218 | . . . . . . . . . . . . . . 178 37 3 . Total Damage 6981 | . . . . . . . . . . . . . . 4641 2165 175 . Kills 55 | . . . . . . . . . . . . . . 41 13 1 . Allies Corrupted . | . . . . . . . . . . . . . . . . . . Allies Melted . | . . . . . . . . . . . . . . . . . . Intel | -11 -10 -10 -9 -9 -9 -8 -8 -7 -7 -7 -7 -7 -6 -6 -6 -5 -4 ------- Run | Yrd Mat Min Mat Min Exi Min Mat Fac Was Fac Low Low Fac Ext Cet Fac Fac Robot Analysis Total 5 | . . . 3 . . . 1 1 . . . . . . . . . Derelict Logs Recovered 3 | . . 1 . 1 . . . . . . 1 . . . . . . Drone Launches . | . . . . . . . . . . . . . . . . . . Drone Recoveries . | . . . . . . . . . . . . . . . . . . Exploration | -11 -10 -10 -9 -9 -9 -8 -8 -7 -7 -7 -7 -7 -6 -6 -6 -5 -4 ------------- Run | Yrd Mat Min Mat Min Exi Min Mat Fac Was Fac Low Low Fac Ext Cet Fac Fac Turns Passed 11170 | 49 397 126 97 259 74 158 326 264 19 292 1333 93 2157 1510 1127 1438 1451 Spaces Moved 8163 | 36 333 253 167 478 212 330 402 520 69 476 753 72 1361 999 602 701 399 Core 182 | 11 . . . . . . . . . . 90 . 21 1 . . 59 Treads 1579 | . . . . . . . . . . . . . . . 560 701 318 Legs 1993 | 25 198 . . . . . . . . . 453 72 225 956 42 . 22 Wheels . | . . . . . . . . . . . . . . . . . . Hover 651 | . . . . . . . . . . . . . 609 42 . . . Flight 3758 | . 135 253 167 478 212 330 402 520 69 476 210 . 506 . . . . Fastest Speed 24 | 50 37 37 34 34 34 34 32 26 24 24 27 130 28 52 120 160 100 Average Speed 105 | 98 86 37 34 34 34 34 40 28 24 26 157 130 120 122 157 160 276 Slowest Speed 1600 | 120 120 37 34 37 34 37 112 114 26 30 450 130 500 700 190 240 1600 Overloaded Moves . | . . . . . . . . . . . . . . . . . . Propulsion Burnouts . | . . . . . . . . . . . . . . . . . . Robots Hopped 9 | . . 1 1 3 . 1 1 . . 2 . . . . . . . Cave-ins Triggered . | . . . . . . . . . . . . . . . . . . Exploration Rate (%) 47 | 3 62 41 16 96 60 89 36 18 68 13 83 15 29 95 96 31 8 Regions Visited 17 Branch Regions 8 Pre-discovered Areas 1 | . . . . . 1 . . . . . . . . . . . . Known Exits Taken 2 | . . . . . . . . . . . 1 . . . 1 . . Unknown Exits Taken 13 | 1 1 1 1 1 1 1 1 . . 1 . 1 1 1 . 1 . Scrap Searched 8 | . . 1 . 1 . 1 . . . . 5 . . . . . . Spaces Dug 1 | . . . . . . . 1 . . . . . . . . . . Terrain Destroyed 268 | . . . . 15 . . 12 . . 11 14 . 12 19 10 148 27 Melee 1 | . . . . . . . 1 . . . . . . . . . . Projectile 41 | . . . . . . . . . . . 6 . 7 . 10 17 1 AOE 225 | . . . . 15 . . 11 . . 11 8 . 5 19 . 131 25 Terrain Rammed . | . . . . . . . . . . . . . . . . . . Walls Destroyed . | . . . . . . . . . . . . . . . . . . Machines Disabled . | . . . . . . . . . . . . . . . . . . Actions | -11 -10 -10 -9 -9 -9 -8 -8 -7 -7 -7 -7 -7 -6 -6 -6 -5 -4 --------- Run | Yrd Mat Min Mat Min Exi Min Mat Fac Was Fac Low Low Fac Ext Cet Fac Fac Total 9896 | 49 387 276 186 517 213 358 530 601 70 625 838 71 1722 1226 710 916 601 Wait 573 | . 3 13 . 3 . 2 60 22 . 100 1 . 119 77 27 113 33 Move 8129 | 35 332 250 164 471 211 327 399 520 68 471 752 71 1360 998 601 700 399 Hop 9 | . . 1 1 3 . 1 1 . . 2 . . . . . . . Pick Up 134 | 8 13 1 3 2 1 4 8 6 . 3 7 . 8 23 5 17 25 Fast Attach 70 | . . . 1 2 . . 4 10 1 2 6 . 23 . 5 4 12 Attach 99 | 6 4 . 3 . . 4 4 2 . 1 8 . 5 20 1 10 31 Detach 5 | . . . . . . . 1 . . . . . 1 . . . 3 Swap 59 | . 5 1 1 4 . 4 7 2 . 4 2 . 5 10 7 5 2 Drop 98 | . 3 2 3 2 1 5 12 14 1 7 2 . 13 6 15 9 3 Fire 477 | . 27 4 10 30 . 9 22 20 . 7 38 . 84 31 49 53 93 Melee 80 | . . . . . . 2 12 5 . 10 13 . 32 1 . 5 . Ram . | . . . . . . . . . . . . . . . . . . Kick . | . . . . . . . . . . . . . . . . . . Crush . | . . . . . . . . . . . . . . . . . . Escape Stasis 95 | . . . . . . . . . . 18 . . 72 5 . . . Rewire 64 | . . . . . . . . . . . 9 . . 55 . . . Trap 4 | . . 4 . . . . . . . . . . . . . . . Miscellaneous . | . . . . . . . . . . . . . . . . . . Route ------- -11/Scrapyard -10/Materials -10/Mines -9/Materials -9/Mines (discovered 3 exits: *Mat / *Exi / [*Zio]) -9/Exiles -8/Mines -8/Materials -7/Factory -7/Waste -7/Factory -7/Lower Caves -7/Lower Caves -6/Factory (discovered 4 exits: Fac / [*Low x2] / *Ext) -6/Extension (discovered 3 exits: *Fac x2 / *Cet) -6/Cetus (discovered 3 exits: *Fac x2 / [*Arc]) -5/Factory -4/Factory History --------- Turn | Location | Event 6 | -11/Scrapyard | Discovered new exit (range 15) 50 | -11/Scrapyard | Entered Materials 236 | -10/Materials | Discovered new exit (range 6) 308 | -10/Materials | Build established: Mutant 447 | -10/Materials | Entered Mines 490 | -10/Mines | Learned Materials garrison access intel 509 | -10/Mines | Found a hidden stash of uninstalled traps 530 | -10/Mines | Discovered new exit (range 14) 536 | -10/Mines | Found the Drone Emporium 573 | -10/Mines | Entered Materials 573 | -9/Materials | Evolved 2 slots: Propulsion x1, Utility x1 667 | -9/Materials | Discovered new exit (range 9) 670 | -9/Materials | Entered Mines 686 | -9/Mines | Learned location of 1 exit from Lower Caves 687 | -9/Mines | Discovered new exit (range 11) 735 | -9/Mines | Met a Derelict bent on vengeance 807 | -9/Mines | Assembled infested the area 812 | -9/Mines | Assisted by a Guerilla fighting off Assembled 822 | -9/Mines | A Derelict revealed a hidden shortcut to a safe place 926 | -9/Mines | Destroyed 9 combat bots 928 | -9/Mines | Deemed a non-threat by the Exiles lab entrance 928 | -9/Mines | Discovered new exit (range 5) 929 | -9/Mines | Entered Exiles 938 | -9/Exiles | Met 8R-AWN 944 | -9/Exiles | Met EX-HEX 954 | -9/Exiles | Met EX-BIN 958 | -9/Exiles | Aligned with FarCom system 958 | -9/Exiles | Given EX-Vault access code 966 | -9/Exiles | Opened EX-Vault 969 | -9/Exiles | Found Longsword +1 977 | -9/Exiles | Warned to stay clear of 0b10 Research branches 987 | -9/Exiles | Met EX-DEC 989 | -9/Exiles | Learned location of Zion (-7) 998 | -9/Exiles | Discovered new exit (range 14) 1003 | -9/Exiles | Left Exiles lab with Longsword +1 1003 | -9/Exiles | Entered Mines 1009 | -8/Mines | Build established: Scavenger-Mutant 1160 | -8/Mines | Discovered new exit (range 2) 1161 | -8/Mines | Entered Materials 1161 | -8/Materials | Evolved 2 slots: Power x1, Utility x1 1162 | -8/Materials | Loaded intel: 1 garrison access location 1200 | -8/Materials | Discovered new exit (range 3) 1235 | -8/Materials | Garrison activated, responded to threat 1297 | -8/Materials | Destroyed 7 combat bots 1333 | -8/Materials | Repaired Cesium-ion Thruster 1487 | -8/Materials | Entered Factory 1487 | -7/Factory | Evolved 2 slots: Propulsion x1, Weapon x1 1751 | -7/Factory | Sucked down chute 1751 | -7/Factory | Entered Waste 1753 | -7/Waste | Spotted C-40 Crusher 1754 | -7/Waste | Spotted C-40 Crusher 1758 | -7/Waste | Spotted C-40 Crusher 1764 | -7/Waste | Spotted C-40 Crusher 1766 | -7/Waste | EMP discharged 1766 | -7/Waste | Spotted C-40 Crusher 1767 | -7/Waste | Discovered new exit (range 16) 1768 | -7/Waste | Spotted C-40 Crusher 1770 | -7/Waste | Entered Factory 1874 | -7/Factory | Build established: Scavenger-Sprinter 2029 | -7/Factory | Fabricated Mic. Fission Core (x2) 2053 | -7/Factory | Discovered new exit (range 16) 2062 | -7/Factory | Entered Lower Caves 2063 | -7/Lower Caves | Identified exit to Lower Caves 2128 | -7/Lower Caves | Learned location of 1 exit from Factory 2128 | -7/Lower Caves | Learned 8 Research zone layouts 2128 | -7/Lower Caves | Learned Research emergency access door positions 2131 | -7/Lower Caves | Lost 4 parts (1p3n) 2400 | -7/Lower Caves | Build established: Mutant 2570 | -7/Lower Caves | Attracted the attention of an 0b10 outpost 2637 | -7/Lower Caves | Core integrity fell below 50% 2653 | -7/Lower Caves | System corruption reached 10% 2686 | -7/Lower Caves | Lost 5 parts (2n2u1w) 2854 | -7/Lower Caves | Attracted the attention of an 0b10 checkpoint 2907 | -7/Lower Caves | Lost 4 parts (1p2n1w) 3287 | -7/Lower Caves | Found Prototype Device 3395 | -7/Lower Caves | Entered another Lower Caves area 3484 | -7/Lower Caves | Discovered new exit (range 5) 3488 | -7/Lower Caves | Entered Factory 3488 | -6/Factory | Evolved 2 slots: Utility x2 3489 | -6/Factory | Identified exit to Factory 3581 | -6/Factory | Build established: Hacker-Mutant 3758 | -6/Factory | Discovered new exit (range 8) 3778 | -6/Factory | Discovered new exit (range 7) 3794 | -6/Factory | Identified Heart of Steel 3859 | -6/Factory | Garrison activated, responded to threat 4093 | -6/Factory | Fabricated Mic. Fission Core (x2) 4211 | -6/Factory | Lost 3 parts (3n) 4857 | -6/Factory | Core integrity fell below 50% 4884 | -6/Factory | Lost 7 parts (1p1n3u2w) 5479 | -6/Factory | Lost 3 parts (2n1w) 5636 | -6/Factory | Discovered new exit (range 16) 5637 | -6/Factory | Spotted B-75 Beast 5645 | -6/Factory | Entered Extension 5686 | -6/Extension | Core integrity fell below 20% 5723 | -6/Extension | Lost 3 parts (2n1w) 5794 | -6/Extension | Rescued A7 5874 | -6/Extension | Rescued a captive Derelict 5875 | -6/Extension | Rescued a captive Derelict 5936 | -6/Extension | Rescued a captive Derelict 5970 | -6/Extension | Energy Cycler disabled 5973 | -6/Extension | Rescued a captive Derelict 5976 | -6/Extension | Rescued a captive Derelict 5977 | -6/Extension | Rescued a captive Derelict 5989 | -6/Extension | Build established: Hacker-Skirmisher 6080 | -6/Extension | Spotted B-75 Beast 6082 | -6/Extension | Spotted B-75 Beast 6124 | -6/Extension | Allies destroyed B-75 Beast 6137 | -6/Extension | Lost 7 parts (1p2n2u2w) 6140 | -6/Extension | Discovered exit to Factory (range 16) 6168 | -6/Extension | Heart of Steel transformed into Warbot 6371 | -6/Extension | Build established: Scavenger-Mutant 6523 | -6/Extension | Discovered new exit (range 15) 6524 | -6/Extension | Discovered exit to Factory (range 15) 6695 | -6/Extension | First assault squad dispatched 7128 | -6/Extension | Lost 5 allies 7155 | -6/Extension | Entered Cetus 7155 | -6/Cetus | Accompanied by 4 allies (Warbot) 7172 | -6/Cetus | Spotted Cetus Guard 7172 | -6/Cetus | Spotted Cetus Guard 7177 | -6/Cetus | Spotted Cetus Guard 7179 | -6/Cetus | Spotted Cetus Guard 7186 | -6/Cetus | Destroyed Cetus Guard 7191 | -6/Cetus | Allies destroyed Cetus Guard 7197 | -6/Cetus | Allies destroyed Cetus Guard 7203 | -6/Cetus | Destroyed Cetus Guard 7290 | -6/Cetus | Discovered exit to Factory (range 15) 7618 | -6/Cetus | Discovered new exit (range 15) 7645 | -6/Cetus | Spotted Cetus Guard 7645 | -6/Cetus | Spotted Cetus Guard 7649 | -6/Cetus | Destroyed Cetus Guard 7649 | -6/Cetus | Spotted Cetus Guard 7659 | -6/Cetus | Destroyed Cetus Guard 7661 | -6/Cetus | Destroyed Cetus Guard 7673 | -6/Cetus | Destroyed Cetus Guard 7703 | -6/Cetus | Discovered exit to Factory (range 15) 7714 | -6/Cetus | Met Revision 17 7814 | -6/Cetus | Build established: Hacker-Mutant 7905 | -6/Cetus | Security sweep announced 8001 | -6/Cetus | Cetus Manufacturing Module disabled 8282 | -6/Cetus | Entered Factory 8282 | -5/Factory | Accompanied by 1 ally (Warbot) 8282 | -5/Factory | Evolved 2 slots: Weapon x2 8570 | -5/Factory | Build established: Scavenger-Skirmisher 8880 | -5/Factory | Build established: Hacker-Skirmisher 9230 | -5/Factory | Build established: Scavenger-Skirmisher 9342 | -5/Factory | Spotted B-75 Beast 9384 | -5/Factory | Destroyed B-75 Beast 9660 | -5/Factory | Build established: Hacker-Skirmisher 9682 | -5/Factory | Discovered new exit (range 8) 9684 | -5/Factory | Cargo convoy interrupted 9720 | -5/Factory | Entered another Factory area 9720 | -4/Factory | Evolved 2 slots: Utility x2 9746 | -4/Factory | Lost 6 parts (1p1n2u2w) 9932 | -4/Factory | Lost 5 parts (1n1u3w) 10032 | -4/Factory | Build established: Hacker-Mutant 10043 | -4/Factory | Lost 3 parts (2u1w) 10199 | -4/Factory | Core integrity fell below 50% 10299 | -4/Factory | Core integrity fell below 20% 10326 | -4/Factory | Lost 12 parts (2p2n5u3w) 10916 | -4/Factory | Build established: Scavenger-Skirmisher 11171 | -4/Factory | Destroyed by H-71 Marshal with Heavy Mass Driver Last Messages --------------- Slug penetrates Earth. Penetrated by Slug. Lgt. Antimatter Reactor destroyed. Adv. Heat Sink destroyed. U-05 Engineer builds a Door. Penetrated by Slug. Med. Treads destroyed. Critical hit (Burn: +37). Plasma Rifle destroyed. Knocked back. Imp. Target Analyzer destroyed. Critical hit (Blast). Penetrated by Slug. Slug penetrates Wall. U-05 Engineer lays Concrete. Penetrated by Slug. U-05 Engineer builds a Wall. U-05 Engineer lays Concrete. Imp. Force Field destroyed. Critical hit (Blast). Map ----- +----------------------------------------------------+ | ?????????????????????????????????????????????????? | | ?????????????????????????????????????????????????? | | ?????????????????????????????????????????????????? | | ?????????????????????????????????????????????????? | | ?????????????????????????????????????????????????? | | ?????????????????????????????????????????????????? | | ?????????????????????????????????????????????????? | | ?????????????????????????????????????????????????? | | ???????????????????????????? ??????????????????? | | ???????????????????????????# ??????????????????? | | ???????????????????????????# ??????????????????? | | ??????????????????????????## #???????????????### | | ??????????????????????????? #???????????????# | | ??????????????????????????? #?"?????????????# | | ??????????????????????????? #?"?????????????# | | ???????????????????????????# # ""????????????# | | ????????????g??????????????# # ???########### | | ???????????????????????????# # "???# # | | ???????????????????????????# " ????# %#= | | ????????????g??????????????# +?????# *%#= | | ?????????????????#?????????# #?????# % [=/%= | | ?????????????????? ???????# % #?????# %#%% | | ?????????????????###;###???# #######% %#[* | | ?????????????????# ### o / # | | ?????????????????# # ;% u####### # | | ?????????????????# %@ ################# | | ?????????????????# % !=%!# | | ?????????????????# =!! =%" + | | ?????????????????# =!! Y = !F"!# | | ?????????o???????# !! | " # | | ?????????????????# % " # | | ?????????????????# # # | | ?????????????????# """ """" " # | | ?????????????????# """ """"" # | | ?????????????????# """Y # """""" # | | ??????????????????? ###uH ### """ # | | ??????????????????? ??# #?# # | | ???????????????????"T" ??# #?############### | | ????????????????????"" ??? #?????????#######+# | | ????????????????????? ???? ?????????# | | ??????????????????????##???? ?????????# | | ???????????????????????????? ???????????# """ """ | | ?????????????????????????????????????????# """ """ | | ?????????????????????????????????????????# """ """ | | ?????????????????????????????????????????# | | ?????????????????????????????????????????# | | ?????????????????????????????????????????# | | ?????????????????????????????????????????######### | | ?????????????????????????????????????????????????? | | ?????????????????????????????????????????????????? | +----------------------------------------------------+ Best States ------------- Heat Dissipation 102 Energy Generation 45 Energy Capacity 600 Matter Stores 300 Matter Capacity 300 Sight Range 16 Robot Scan Range 16 Terrain Scan Density 10 ECM Strength 2 Jamming Range 12 Additional Mass Support 9 Base Temperature (-) 100 Armor Coverage 450 Resistance: KI 20 Resistance: TH 20 Resistance: EX 70 Resistance: EM 20 Resistance: I 20 Resistance: S 20 Resistance: P 20 Weapon Cycling 20 Melee Speed Boost 20 Phase Shifting 10 Evasion (%) 72 Targeting Accuracy 6 Melee Accuracy 6 Target Analysis 9 Recoil Reduction 4 Offensive Hacking 42 Item Schematics ----------------- Mic. Fission Core | -7/Factory | Hacked Adv. ECM Suite | -6/Factory | Scanalyzed Enh. Force Lance | -5/Factory | Hacked Robot Schematics ------------------ None Fabricated ------------ Mic. Fission Core | x2 | -7/Factory Mic. Fission Core | x2 | -6/Factory Alien Tech Used ----------------- None Achievements -------------- Can't Catch Me Overkill Preemptive Strike Prison Break Revising The Future Tank Challenges ------------ None Game ------ Seed RemoteThrowingBoomstick Manual? 0 Play Time 01:55:50 Cumulative 45.8 hours Start 2024.08.30 @ 16:25:27 End 2024.08.30 @ 18:19:02 Sessions 1 Manual Loads 0 Difficulty Adventurer Special Mode None Game No. 58 Rogue 13 Adventurer 45 Explorer 0 Win Type - Total 0 Types 0/0/0/0/0/0/0/0/0 Lore% 39 Gallery% 44 Achievement% 38 Wizard Run 0 Options --------- Layout 1 ASCII 0 Keyboard 0 Movement Mouse Keybinds 0 Fullscreen 1 Font 24/Smallcaps Map View 50x35 Zoom Use 0% Tactical HUD 0 Map Filters NONE Filters NONE Steam 1 RUN: d8d6a69d-317d-4e7a-b682-560a22658c36